bitfinex-derivatives/quotes_ETHF0:USTF0_20251119
["timestamp","ask_amount","ask_price","bid_price","bid_amount"]
[1763565787534,3.19062832,3036.2,3035.9,3.579]
[1763565787735,3.05320124,3036.3,3036.0,3.58]
[1763565787924,0.00493689,3036.9,3035.8,3.21689979]
[1763565788129,0.00493689,3036.9,3035.9,54.041]
[1763565788329,0.00493689,3036.9,3035.8,0.00909979]
[1763565788330,3.2078,3036.2,3035.8,0.00909979]
[1763565788632,3.2078,3036.2,3035.1,2.896]
[1763565788838,0.00409687,3037.5,3035.1,2.896]
[1763565788839,3.2078,3035.6,3035.1,2.896]
[1763565789134,3.2078,3036.5,3035.5,3.2078]
[1763565789431,0.00409687,3037.5,3035.6,19.62186665]
[1763565789638,3.2078,3035.7,3035.6,4.19603686]
[1763565789834,3.2078,3036.2,3035.6,0.00417021]
[1763565790228,3.2078,3036.2,3035.7,7.90657166]
[1763565790430,3.2078,3036.2,3035.7,4.30457166]
[1763565790625,3.2078,3036.2,3035.8,15.443]
[1763565790831,3.14037,3036.2,3035.8,15.443]
[1763565791139,3.2078,3036.7,3035.9,4.19972412]
[1763565791337,3.2078,3036.7,3036.0,15.446]
[1763565791533,3.2078,3036.7,3035.8,4.19972412]
[1763565791739,3.2078,3036.2,3035.6,0.00417021]
[1763565791939,3.2078,3036.2,3035.7,15.445]
[1763565792237,3.2078,3036.2,3035.7,4.24304708]
[1763565792436,3.2078,3036.6,3035.8,3.2078]
[1763565792638,3.2078,3036.6,3035.9,15.448]
[1763565792839,3.2078,3036.6,3035.9,4.24304708]
[1763565793041,3.2078,3036.6,3035.6,3.21197021]
[1763565793241,3.2078,3036.1,3035.6,3.21197021]
[1763565793433,3.2078,3035.7,3035.6,0.00417021]
[1763565793929,9.2078,3035.7,3034.4,40.8]
[1763565794132,3.2078,3035.1,3034.5,3.61]
[1763565794335,3.2078,3035.1,3034.4,40.8]
[1763565794542,3.2078,3035.1,3034.5,19.68360583]
[1763565794834,3.2078,3034.7,3034.4,11.847]
[1763565795032,0.00337159,3034.7,3033.5,3.2078]
[1763565795238,3.2078,3033.6,3032.2,0.75964158]
[1763565795433,3.2078,3033.2,3032.2,3.96744158]
[1763565795631,3.2078,3035.4,3033.1,6.38877968]
[1763565795831,3.2078,3035.0,3033.7,3.2078]
[1763565796038,1.3839,3035.5,3034.1,3.2078]
[1763565796238,3.2078,3034.3,3033.1,1.582]
[1763565796429,3.2078,3033.9,3032.9,3.2078]
[1763565796632,3.2078,3033.7,3033.2,3.2078]
[1763565796836,3.21274576,3033.7,3033.2,3.2078]
[1763565797037,0.00494576,3033.7,3033.6,3.2078]
[1763565797335,3.2078,3035.1,3033.6,3.2078]
[1763565797531,3.18097968,3035.4,3033.6,4.27610849]
[1763565797740,3.2078,3034.5,3033.4,3.2078]
[1763565798144,3.2078,3033.9,3033.1,0.00494576]
[1763565798339,3.2078,3033.2,3033.1,0.00494576]
[1763565798730,1.3839,3034.2,3033.1,0.00494576]
[1763565798731,3.2078,3033.5,3033.1,0.00494576]
[1763565799042,3.2078,3033.5,3033.2,3.656]
[1763565799243,3.2968,3033.4,3032.0,3.2078]
[1763565799436,4.27702,3032.5,3030.4,3.2078]
[1763565799638,1.3839,3032.9,3030.4,3.2078]
[1763565799639,3.2078,3030.9,3030.4,3.2078]
[1763565799940,3.2078,3030.5,3029.8,3.2078]
[1763565800339,3.21628039,3030.5,3029.8,0.00807538]
[1763565800534,3.2078,3030.1,3029.8,0.00807538]
[1763565800735,0.00848039,3030.5,3029.8,0.00807538]
[1763565800939,3.2078,3032.5,3030.3,2.00448]
[1763565801238,3.2078,3033.4,3031.7,3.2078]
[1763565801440,3.2078,3033.4,3031.6,3.2078]
[1763565801645,3.2078,3033.8,3032.1,3.2078]
[1763565801831,0.00494576,3033.3,3032.6,0.00494576]
[1763565802033,0.0029231,3033.8,3032.6,0.00494576]
[1763565802034,0.0029231,3033.8,3033.0,3.2078]
[1763565802244,0.0029231,3033.8,3032.7,40.8]
[1763565802536,1.3839,3034.2,3033.1,4.31507789]
[1763565802736,3.2078,3034.1,3033.4,3.2078]
[1763565802936,3.2078,3034.1,3032.8,8.11960233]
[1763565802937,3.2078,3034.0,3032.7,3.2078]
[1763565803137,0.00494576,3034.1,3033.4,0.00494576]
[1763565803344,0.00494576,3034.1,3033.7,3.2078]
[1763565803537,0.00869527,3034.1,3033.4,0.00494576]
[1763565803741,0.00869527,3034.1,3033.7,3.69]
[1763565803942,0.00869527,3034.1,3033.4,0.00494576]
[1763565803943,3.2078,3033.8,3033.4,0.00494576]
[1763565804141,1.06888,3033.4,3032.1,0.00368983]
[1763565804343,3.2078,3032.9,3032.1,0.00368983]
[1763565804540,3.2078,3033.7,3032.3,3.2078]
[1763565804741,3.2078,3033.7,3033.0,3.2078]
[1763565804934,3.2078,3034.4,3033.4,3.2078]
[1763565805137,3.2078,3035.2,3033.8,3.2078]
[1763565805341,3.2078,3034.8,3033.8,3.2078]
[1763565805738,3.2078,3034.8,3033.9,3.2078]
[1763565805938,0.00494576,3034.7,3034.3,3.2078]
[1763565806148,0.00494576,3034.7,3034.3,3.21193633]
[1763565806346,3.2078,3035.2,3034.3,3.21193633]
[1763565806543,3.2078,3035.2,3034.3,3.70013633]
[1763565806944,3.2078,3035.6,3034.8,3.2078]
[1763565807140,3.2078,3035.6,3035.2,3.2078]
[1763565807445,0.00364682,3035.6,3035.2,6.9028]
[1763565807843,0.00364682,3035.6,3035.2,3.2078]
[1763565808040,3.2078,3036.7,3035.3,9.693]
[1763565808244,3.2078,3036.7,3035.9,3.2078]
[1763565808446,3.2078,3036.7,3035.3,8.02959744]
[1763565808447,3.2078,3037.1,3036.6,3.2078]
[1763565808645,3.2078,3037.7,3037.0,3.2078]
[1763565808836,3.2078,3037.7,3036.9,3.691]
[1763565809145,3.2078,3037.6,3036.9,3.69]
[1763565809335,3.21274576,3037.6,3037.0,0.00494576]
[1763565809844,0.00494576,3037.6,3037.3,3.2078]
[1763565810142,0.00494576,3037.6,3037.4,8.03957222]
[1763565810546,3.2078,3038.5,3037.4,6.8948]
[1763565810846,3.2078,3038.5,3037.9,5.84119916]
[1763565811244,3.2078,3039.6,3038.4,3.2078]
[1763565811440,3.2078,3039.6,3038.8,3.2078]
[1763565811740,3.2078,3039.6,3038.6,2.63339916]
[1763565811741,3.2078,3039.1,3038.9,0.00493753]
[1763565811938,3.21072858,3039.5,3038.9,0.00493753]
[1763565812143,0.00292858,3039.5,3038.9,0.00493753]
[1763565812339,3.21072858,3039.5,3038.9,0.00493753]
[1763565812541,3.2078,3039.1,3038.9,0.00493753]
[1763565813344,3.21072858,3039.5,3038.9,0.00493753]
[1763565813846,3.21072858,3039.5,3039.0,3.678]
[1763565814049,3.21072858,3039.5,3038.9,0.00493753]
[1763565814244,3.21072858,3039.5,3039.0,3.678]
[1763565814555,0.00292858,3039.5,3039.1,3.2078]
[1763565814747,0.00292858,3039.5,3039.1,3.21154064]
[1763565815351,3.2078,3040.3,3039.4,2.63339916]
[1763565815555,3.2078,3041.7,3040.2,3.2078]
[1763565815851,3.2078,3041.6,3040.7,2.63339916]
[1763565816053,3.2078,3041.6,3040.8,3.318]
[1763565816254,0.00318232,3041.6,3041.1,3.2078]
[1763565816452,0.00318232,3041.6,3041.3,2.63339916]
[1763565816649,3.2078,3041.5,3041.3,0.00233236]
[1763565816947,3.2078,3041.5,3041.4,1.212]
[1763565817253,3.2078,3041.5,3040.9,0.00493753]
[1763565817649,3.2078,3041.0,3040.9,0.00493753]
[1763565818454,3.2078,3041.0,3040.9,0.00870658]
[1763565818753,3.2078,3041.4,3040.9,0.00870658]
[1763565818957,3.2078,3041.0,3039.5,2.63339916]
[1763565819257,1.06602,3041.5,3039.5,2.63339916]
[1763565819258,3.2078,3040.6,3039.8,3.664]
[1763565819552,3.2078,3040.6,3039.9,3.663]
[1763565819750,3.2078,3041.0,3040.2,3.2078]
[1763565819956,0.00493753,3040.9,3040.3,0.00493753]
[1763565820149,3.2078,3040.4,3040.3,0.00493753]
[1763565821362,3.2078,3040.8,3040.3,0.00493753]
[1763565821844,3.2078,3040.8,3040.4,3.655]
[1763565822251,0.00493753,3040.9,3040.4,3.655]
[1763565822452,0.00493753,3040.9,3040.6,2.63339916]
[1763565822652,0.00493753,3040.9,3040.7,3.2078]
[1763565822854,0.00493753,3040.9,3040.7,6.8618]
[1763565823048,3.2078,3041.2,3040.7,6.8618]
[1763565823760,3.2078,3041.2,3040.7,3.2078]
[1763565823949,3.2078,3041.2,3040.8,3.649]
[1763565824155,3.2078,3041.2,3040.3,44.01273753]
[1763565824356,3.2078,3041.2,3040.4,3.649]
[1763565824652,3.2078,3041.2,3040.7,0.042]
[1763565824854,4.3243,3040.8,3038.9,3.2078]
[1763565825067,3.2078,3039.7,3038.5,3.2078]
[1763565825246,3.2078,3039.3,3038.8,2.63339916]
[1763565825449,2.54278,3042.0,3039.6,2.63339916]
[1763565825450,3.2078,3041.4,3039.6,2.63339916]
[1763565825650,1.4769,3042.0,3039.6,2.63339916]
[1763565825651,3.2078,3041.0,3039.7,6.8578]
[1763565825851,0.00493753,3040.7,3040.0,0.00493753]
[1763565826161,0.00493753,3040.7,3040.2,3.2078]
[1763565826361,0.00493753,3040.7,3040.6,3.2078]
[1763565826563,0.00493753,3040.7,3040.5,3.2078]
[1763565827259,0.00493753,3040.7,3040.0,0.00493753]
[1763565827657,0.00493753,3040.7,3040.2,3.2078]
[1763565827856,0.00493753,3040.7,3040.1,3.644]
[1763565828056,0.00493753,3040.7,3040.6,3.2078]
[1763565828256,0.00493753,3040.7,3040.2,2.63339916]
[1763565828457,0.00493753,3040.7,3040.0,0.00493753]
[1763565831160,0.00493753,3040.7,3040.0,2.63833669]
[1763565831356,0.00493753,3040.7,3040.2,3.2078]
[1763565832264,0.00493753,3040.7,3040.6,3.2078]
[1763565832659,0.00493753,3040.7,3040.2,3.2078]
[1763565832856,0.00493753,3040.7,3040.6,3.2078]
[1763565833060,0.00493753,3040.7,3040.6,3.627]
[1763565833258,0.00493753,3040.7,3040.4,3.627]
[1763565834060,0.00493753,3040.7,3040.1,3.2078]
[1763565834370,0.00493753,3040.7,3040.2,3.626]
[1763565834560,1.4769,3040.4,3040.0,0.00493753]
[1763565834758,1.4769,3040.4,3040.0,3.753e-05]
[1763565834961,3.2078,3040.1,3039.3,3.2078]
[1763565835967,1.4769,3040.4,3039.5,2.63339916]
[1763565836167,1.4769,3040.4,3039.7,3.2078]
[1763565836567,3.2078,3040.1,3039.4,0.00493753]
[1763565836756,0.53331,3039.8,3039.4,0.00493753]
[1763565836962,0.53331,3039.8,3039.3,0.0040629]
[1763565836963,1.06662,3039.8,3039.3,0.0040629]
[1763565837376,0.81974579,3039.7,3039.3,0.0040629]
[1763565837669,3.2078,3039.7,3039.3,0.0040629]
[1763565838066,3.2078,3039.4,3038.1,3.617]
[1763565838262,0.81965569,3039.3,3038.7,3.2078]
[1763565838572,3.2078,3039.4,3038.8,1.816]
[1763565838767,3.2078,3039.4,3038.8,3.617]
[1763565838973,3.2078,3039.4,3038.8,0.00244129]
[1763565839267,0.8214965,3039.3,3038.8,0.00737882]
[1763565839474,3.21273753,3039.4,3038.8,0.00737882]
[1763565839475,3.2078,3039.0,3038.8,0.00737882]
[1763565840263,3.21273753,3039.4,3038.9,3.2078]
[1763565840463,0.82259313,3039.3,3038.9,3.2078]
[1763565840765,3.21273753,3039.4,3038.9,3.2078]
[1763565840766,0.82259313,3039.2,3038.9,3.2078]
[1763565840970,4.644,3039.0,3037.8,3.2078]
[1763565841270,3.2078,3037.9,3036.8,2.555]
[1763565841468,1.17372078,3038.6,3037.8,5.84119916]
[1763565841670,3.2078,3040.2,3038.5,2.63339916]
[1763565841872,3.2078,3040.6,3039.8,0.5333]
[1763565842074,3.2078,3041.5,3040.7,2.63339916]
[1763565842275,0.00298117,3041.5,3040.9,3.2078]
[1763565842578,3.2078,3042.5,3041.4,3.2078]
[1763565842874,3.2078,3042.1,3041.2,3.2078]
[1763565843074,3.2078,3042.5,3041.2,3.2078]
[1763565843267,0.80408388,3042.4,3041.2,5.84119916]
[1763565843469,0.00493753,3042.1,3041.5,0.00493753]
[1763565843672,0.00493753,3042.1,3042.0,3.2078]
[1763565843869,3.2078,3043.8,3042.0,4.25496627]
[1763565844176,3.2078,3043.4,3042.8,3.2078]
[1763565844876,0.00802204,3043.4,3042.8,3.2078]
[1763565845374,3.2078,3044.2,3043.3,3.2078]
[1763565845574,3.2078,3043.7,3042.4,11.847]
[1763565845874,3.2078,3042.6,3041.3,3.614]
[1763565846070,3.2078,3042.6,3041.3,3.618]
[1763565846375,3.2078,3042.6,3042.0,3.2078]
[1763565846376,0.00492893,3042.3,3042.0,3.2078]
[1763565846780,3.2078,3043.6,3042.1,4.33745578]
[1763565846980,3.2078,3043.6,3042.9,3.2078]
[1763565847276,3.2078,3043.6,3043.0,3.62]
[1763565847673,3.2078,3043.6,3042.5,3.2078]
[1763565847876,3.21505374,3043.6,3042.5,3.2078]
[1763565848068,3.21505374,3043.6,3042.9,3.2078]
[1763565848268,3.21505374,3043.6,3042.5,3.2078]
[1763565848473,3.21505374,3043.6,3042.7,2.63339916]
[1763565848669,3.21505374,3043.6,3042.5,3.2078]
[1763565848976,3.21505374,3043.6,3042.7,3.614]
[1763565849379,3.2078,3043.1,3042.1,3.2078]
[1763565849872,3.2078,3043.1,3042.2,3.2078]
[1763565850173,0.00725374,3043.6,3042.3,15.454]
[1763565850174,3.2078,3043.5,3042.3,15.454]
[1763565850376,3.2078,3043.1,3042.2,5.84119916]
[1763565850579,3.2078,3043.1,3042.3,2.304]
[1763565850879,3.2078,3042.7,3042.0,0.00284953]
[1763565851083,3.2078,3042.2,3042.0,0.00284953]
[1763565851271,3.2078,3042.6,3042.0,0.00284953]
[1763565851475,3.2078,3042.2,3042.0,0.00284953]
[1763565852372,0.7979,3042.0,3040.2,3.2078]
[1763565852588,3.2078,3040.3,3039.8,11.841]
[1763565852771,3.2078,3040.3,3038.9,6.8138]
[1763565853084,3.2078,3040.3,3039.0,3.2078]
[1763565853272,3.2078,3039.9,3039.0,3.21060818]
[1763565853472,0.00492893,3039.8,3039.1,0.00492893]
[1763565853668,0.00492893,3039.8,3039.4,5.84119916]
[1763565855281,0.00492893,3039.8,3039.4,2.10293192]
[1763565855480,0.00492893,3039.8,3037.7,2.2583108]
[1763565855481,3.2078,3039.5,3038.1,3.2078]
[1763565855677,3.2078,3039.5,3038.5,3.2078]
[1763565855873,3.2078,3039.5,3038.3,2.63339916]
[1763565856079,3.2078,3039.5,3039.1,3.2078]
[1763565856380,3.2078,3039.5,3039.1,0.00380867]
[1763565856570,0.00492893,3039.8,3039.2,3.601]
[1763565857174,0.00303171,3040.3,3039.6,1.4986]
[1763565857376,3.2078,3041.3,3040.1,2.63339916]
[1763565857779,3.2078,3041.3,3040.4,3.2078]
[1763565858275,0.00492893,3041.2,3040.9,3.2078]
[1763565858476,3.21070628,3041.3,3040.9,3.2078]
[1763565858879,3.21070628,3041.3,3040.7,3.595]
[1763565859182,3.21070628,3041.3,3040.7,6.8028]
[1763565859569,3.21563234,3041.3,3040.7,6.8008]
[1763565860180,3.21563234,3041.3,3040.8,3.593]
[1763565860377,3.21563234,3041.3,3040.9,3.592]
[1763565860574,3.21563234,3041.3,3040.5,3.59592893]
[1763565860771,3.2078,3040.7,3040.5,0.00492893]
[1763565862289,9.2078,3040.7,3039.5,3.2078]
[1763565862482,3.2078,3040.0,3039.1,3.21160867]
[1763565862784,1.4341,3040.8,3039.1,0.00380867]
[1763565862785,3.2078,3039.5,3039.1,0.00380867]
[1763565863278,3.2078,3039.9,3039.1,3.21160867]
[1763565863479,0.00492893,3039.6,3039.5,3.2078]
[1763565864779,1.4341,3040.8,3039.1,3.21160867]
[1763565864780,3.2078,3039.8,3039.1,3.21160867]
[1763565864980,3.2078,3039.8,3039.2,3.583]
[1763565865689,3.21272606,3039.8,3039.1,3.21160867]
[1763565865882,3.21272606,3039.8,3039.2,3.578]
[1763565866084,3.2078,3039.4,3039.1,0.00380867]
[1763565867190,3.21272606,3039.8,3039.1,0.00380867]
[1763565867389,0.00492606,3039.8,3039.2,3.2078]
[1763565867696,3.21272606,3039.8,3039.1,0.00380867]
[1763565867990,3.21272606,3039.8,3039.2,3.575]
[1763565868396,0.00492606,3039.8,3039.2,6.7828]
[1763565868892,3.2078,3041.1,3039.7,3.12960674]
[1763565869087,3.2078,3041.1,3039.9,3.2078]
[1763565869589,3.2078,3040.8,3039.9,3.2078]
[1763565869784,3.2078,3040.8,3040.0,2.245]
[1763565870891,3.2078,3040.6,3039.9,3.2078]
[1763565872792,3.2078,3041.1,3040.4,3.2078]
[1763565872994,3.2078,3041.1,3040.4,0.00492893]
[1763565873201,3.2078,3040.7,3040.4,0.00492893]
[1763565875500,3.2078,3041.1,3040.4,0.00492893]
[1763565876198,1.393,3041.0,3040.4,0.00492893]
[1763565876795,1.393,3041.0,3040.5,3.554]
[1763565877398,1.393,3041.0,3040.4,0.00492893]
[1763565877596,3.2078,3041.1,3040.4,3.55692893]
[1763565877798,0.00290628,3041.3,3040.4,0.00492893]
[1763565877799,3.2078,3040.7,3040.4,0.00492893]
[1763565877994,1.393,3041.0,3040.4,0.00492893]
[1763565878599,3.2078,3040.7,3040.4,0.00492893]
[1763565881710,1.393,3041.0,3040.4,0.00492893]
[1763565881912,3.2078,3041.2,3040.4,0.00492893]
[1763565882111,3.2078,3041.2,3040.5,3.54]
[1763565883402,0.00290628,3041.3,3040.8,3.2078]
[1763565883712,4.37444643,3043.4,3041.7,0.53297]
[1763565884017,3.2078,3043.4,3042.4,3.2078]
[1763565884206,1.393,3043.0,3042.2,0.00492893]
[1763565884514,3.2078,3042.6,3042.2,0.0091333]
[1763565885012,1.39651599,3043.0,3042.2,0.0091333]
[1763565885213,0.00351599,3043.0,3042.2,3.2169333]
[1763565885404,0.00351599,3043.0,3042.6,3.2078]
[1763565886011,3.21131599,3043.0,3042.3,3.2078]
[1763565886308,3.21131599,3043.0,3042.7,3.2078]
[1763565886309,0.00351599,3043.0,3042.7,3.2078]
[1763565886821,3.2078,3044.0,3042.8,6.0]
[1763565887007,3.2078,3044.0,3042.7,3.2078]
[1763565887202,3.2078,3044.0,3042.5,6.66160674]
[1763565887203,3.2078,3045.0,3043.6,3.2078]
[1763565887502,3.2078,3045.0,3044.0,3.21272893]
[1763565887705,3.2078,3045.4,3044.1,3.532]
[1763565887903,3.2078,3045.0,3044.1,45.02504335]
[1763565888103,3.2078,3045.0,3044.2,3.531]
[1763565888509,3.2078,3045.0,3044.4,3.2078]
[1763565888709,3.2078,3045.0,3044.4,3.21161104]
[1763565889704,0.00359315,3045.4,3044.9,3.2078]
[1763565889914,0.00359315,3045.4,3045.0,3.528]
[1763565890312,0.00359315,3045.4,3045.1,3.528]
[1763565890512,0.00359315,3045.4,3044.8,3.2078]
[1763565890714,3.2078,3045.2,3044.9,3.528]
[1763565890911,1.393,3045.0,3044.4,3.21161104]
[1763565891209,2.45818,3044.0,3041.8,14.1951139]
[1763565891410,3.2078,3043.6,3042.2,3.12960674]
[1763565891611,3.2078,3043.2,3042.6,3.2078]
[1763565891913,3.2078,3042.8,3041.8,3.2078]
[1763565892104,3.2078,3042.4,3041.8,3.21104005]
[1763565892303,3.21272892,3042.4,3041.9,3.529]
[1763565893305,3.21272892,3042.4,3042.0,3.53]
[1763565893817,3.21272892,3042.4,3042.1,3.528]
[1763565894314,3.21272892,3042.4,3041.8,0.00816898]
[1763565894516,3.21272892,3042.4,3041.9,3.526]
[1763565894709,3.21272892,3042.4,3041.8,0.00816898]
[1763565894910,3.21272892,3042.4,3042.0,3.526]
[1763565895307,3.21272892,3042.4,3041.8,0.00816898]
[1763565895614,3.21272892,3042.4,3041.9,3.524]
[1763565896210,0.00492892,3042.4,3042.0,5.69509704]
[1763565896413,0.00492892,3042.4,3042.1,3.2078]
[1763565896610,0.00492892,3042.4,3041.8,0.00816898]
[1763565896802,3.2078,3042.2,3041.8,0.00816898]
[1763565897010,3.2078,3042.2,3041.1,3.524]
[1763565897506,3.2078,3041.7,3041.1,3.524]
[1763565897906,3.2078,3041.7,3041.2,3.522]
[1763565898710,3.2078,3042.1,3041.2,3.522]
[1763565899012,3.2078,3042.1,3041.2,6.7298]
[1763565899213,0.00492892,3042.4,3041.7,3.2078]
[1763565899815,0.00492892,3042.4,3042.1,3.2078]
[1763565900014,0.00492892,3042.4,3041.8,3.2078]
[1763565900214,0.00492892,3042.4,3041.4,3.2078]
[1763565900413,0.00492892,3042.4,3040.8,3.2078]
[1763565900414,3.2078,3041.8,3040.8,3.2078]
[1763565900614,3.2078,3041.1,3040.4,3.516]
[1763565900920,3.2078,3041.0,3040.4,3.516]
[1763565901218,3.2078,3041.0,3040.4,6.7238]
[1763565901411,1.393,3042.0,3040.4,6.7238]
[1763565901412,3.2078,3040.7,3040.4,0.00898358]
[1763565901614,3.2078,3041.2,3040.4,0.00898358]
[1763565901811,3.2078,3040.8,3039.1,3.2078]
[1763565902015,3.2078,3040.8,3039.0,1.4732]
[1763565902016,3.2078,3039.5,3038.4,3.2078]
[1763565902219,3.2078,3038.8,3038.4,3.2078]
[1763565902815,3.2078,3039.5,3038.4,3.21124594]
[1763565903018,0.00361772,3038.8,3038.4,3.21124594]
[1763565903816,3.2078,3040.0,3038.4,9.21124594]
[1763565904013,3.2078,3040.0,3038.2,3.12960674]
[1763565904014,3.2078,3039.0,3038.2,3.2078]
[1763565904221,3.2078,3039.2,3038.4,3.2078]
[1763565904416,3.2078,3038.7,3036.7,3.2078]
[1763565904621,3.2078,3038.0,3036.9,3.524]
[1763565904818,3.2078,3037.6,3036.9,3.524]
[1763565905018,0.00798496,3037.6,3037.1,6.33740674]
[1763565905220,3.2078,3038.7,3037.5,3.2078]
[1763565905514,3.2078,3038.0,3037.5,3.2078]
[1763565905718,3.2078,3037.6,3037.2,3.524]
[1763565906022,3.2078,3037.7,3037.2,3.524]
[1763565906223,3.21273712,3037.7,3037.2,3.524]
[1763565906420,0.00779982,3037.7,3037.2,3.524]
[1763565906626,0.00779982,3037.7,3037.2,6.65360674]
[1763565906828,3.2078,3038.5,3037.5,3.2078]
[1763565907023,3.2078,3038.5,3038.0,1.4076]
[1763565907326,3.2078,3039.3,3038.4,3.2078]
[1763565907521,3.2078,3039.3,3038.8,3.2078]
[1763565907719,3.2078,3040.1,3039.0,1.4076]
[1763565908024,3.712e-05,3039.4,3039.0,1.4076]
[1763565908224,3.712e-05,3039.4,3039.2,3.2078]
[1763565908417,3.712e-05,3039.4,3039.2,3.21147595]
[1763565908613,3.712e-05,3039.4,3039.3,6.0]
[1763565909024,3.712e-05,3039.4,3039.3,3.521]
[1763565909830,3.20783712,3039.4,3039.2,0.00367595]
[1763565910222,3.20783712,3039.4,3038.7,0.00493712]
[1763565910432,3.2078,3038.8,3038.7,0.00493712]
[1763565911329,3.2078,3038.8,3038.7,0.00787701]
[1763565913325,3.2078,3039.2,3038.7,0.00787701]
[1763565913517,3.712e-05,3039.4,3038.9,3.2078]
[1763565913725,0.00294343,3040.1,3039.3,4.6154]
[1763565913923,0.00294343,3040.1,3039.9,3.2078]
[1763565914122,0.00294343,3040.1,3039.5,3.2078]
[1763565914322,0.00294343,3040.1,3039.6,3.511]
[1763565914629,1.06598,3041.7,3039.6,3.511]
[1763565914630,3.2078,3041.7,3040.2,0.53324]
[1763565914833,0.00493167,3041.3,3040.7,3.2078]
[1763565915125,0.00493167,3041.3,3040.6,0.00493712]
[1763565915126,3.21273167,3041.3,3040.8,3.511]
[1763565915324,3.2078,3040.9,3040.8,3.511]
[1763565915530,0.00421875,3040.9,3040.8,3.511]
[1763565916728,0.00493167,3041.3,3040.8,3.511]
[1763565917032,0.00493167,3041.3,3041.0,3.2078]
[1763565917433,0.00493167,3041.3,3040.8,3.511]
[1763565917635,3.2078,3041.1,3040.8,0.00398889]
[1763565918229,9.2078,3041.1,3040.8,0.00398889]
[1763565918436,3.2078,3041.1,3040.2,3.504]
[1763565918630,3.2078,3040.3,3040.2,3.504]
[1763565918934,3.2078,3040.3,3039.4,3.503]
[1763565919141,1.4321,3040.4,3039.4,3.503]
[1763565919142,3.2078,3039.5,3039.4,3.503]
[1763565919435,3.2078,3039.5,3039.4,0.00244253]
[1763565920137,0.00493712,3039.8,3039.4,0.00244253]
[1763565920333,3.2078,3039.5,3039.4,0.00244253]
[1763565920833,3.2078,3039.5,3038.1,3.2078]
[1763565921034,3.2078,3039.3,3038.5,3.239]
[1763565921230,3.2078,3038.9,3038.5,3.239]
[1763565921635,3.2078,3038.9,3038.5,3.498]
[1763565921837,3.2078,3038.9,3038.5,0.00410167]
[1763565921838,3.21110938,3038.9,3038.5,0.00410167]
[1763565922233,3.21110938,3038.9,3038.4,0.00493712]
[1763565922533,3.2078,3038.5,3038.4,0.00493712]
[1763565923129,3.2078,3038.5,3038.4,0.00909785]
[1763565924137,3.21110938,3038.9,3038.4,0.00909785]
[1763565925334,0.00330938,3038.9,3038.4,0.00909785]
[1763565925633,3.2078,3038.5,3037.5,3.2078]
[1763565925840,3.2078,3037.8,3037.1,6.6978]
[1763565926035,3.2078,3037.7,3037.1,3.2078]
[1763565926234,3.2078,3037.9,3037.2,3.49]
[1763565926540,3.21273712,3037.9,3037.2,3.49794215]
[1763565927935,3.2078,3037.5,3037.2,0.00794215]
[1763565928139,3.2078,3037.5,3036.1,3.2078]
[1763565928335,6.00493712,3037.9,3034.2,2.3561139]
[1763565928336,3.2078,3035.9,3034.2,2.3561139]
[1763565928636,3.2078,3035.9,3033.5,4.07323505]
[1763565928637,3.2078,3034.4,3033.7,3.2078]
[1763565928834,3.2078,3035.3,3033.9,2.63375894]
[1763565929036,3.2078,3034.6,3033.8,3.2078]
[1763565929234,3.2078,3034.2,3033.9,0.00493712]
[1763565929632,0.00493712,3034.5,3033.9,0.00493712]
[1763565929833,3.2078,3034.2,3033.9,0.00493712]
[1763565930031,3.2078,3034.2,3032.8,3.2078]
[1763565930238,3.2078,3033.3,3032.9,1.612]
[1763565930435,0.00493712,3034.5,3032.8,6.6968]
[1763565930436,3.2078,3033.9,3032.8,6.6968]
[1763565930644,3.2078,3033.9,3032.9,2.63375894]
[1763565930848,3.2078,3033.5,3032.8,3.489]
[1763565931042,3.2078,3033.4,3032.8,0.00332462]
[1763565931341,3.2078,3034.0,3032.8,5.84896225]
[1763565931550,3.2078,3034.2,3033.3,3.2078]
[1763565931734,1.3914,3033.8,3032.8,0.00740331]
[1763565931938,3.2078,3033.3,3032.4,3.2078]
[1763565932139,3.2078,3032.8,3031.9,5.84155894]
[1763565932445,3.2078,3032.8,3032.3,3.2078]
[1763565932743,1.3914,3033.8,3032.3,3.2078]
[1763565932744,3.2078,3033.2,3032.3,3.2078]
[1763565933039,0.00494543,3033.1,3032.4,3.501]
[1763565933936,3.2078,3032.8,3032.3,0.00352484]
[1763565934142,0.00494543,3033.1,3032.4,3.5]
[1763565934839,0.00494543,3033.1,3032.5,3.5]
[1763565935042,3.2078,3034.4,3033.0,4.5399]
[1763565935240,3.2078,3033.7,3032.6,6.86437155]
[1763565935542,3.2078,3033.6,3033.1,3.5]
[1763565935737,3.2078,3034.2,3033.1,3.5]
[1763565936045,3.2078,3033.4,3032.7,2.63375894]
[1763565936240,3.2078,3033.4,3033.3,0.00494542]
[1763565936744,3.2078,3033.4,3032.3,11.86652484]
[1763565936745,9.2078,3033.4,3032.3,0.00352484]
[1763565937048,3.2078,3032.7,3032.3,0.00352484]
[1763565937337,3.2078,3033.5,3032.4,3.2078]
[1763565937544,3.2078,3033.5,3032.8,3.2078]
[1763565937938,3.2078,3033.1,3032.4,3.2078]
[1763565938139,3.2078,3033.5,3032.4,3.2078]
[1763565938446,3.2078,3033.1,3032.4,3.2078]
[1763565938651,3.2078,3033.1,3032.5,3.498]
[1763565939051,2.588,3033.1,3032.5,3.498]
[1763565940044,3.2078,3033.5,3032.8,3.2078]
[1763565940643,3.2078,3033.9,3033.2,3.2078]
[1763565940951,3.2078,3033.9,3033.2,5.84155894]
[1763565941450,0.00494543,3034.0,3033.7,3.2078]
[1763565941745,0.00494543,3034.0,3033.2,2.63375894]
[1763565941746,0.00494543,3034.0,3033.3,3.2078]
[1763565941948,0.00494543,3034.0,3033.7,3.2078]
[1763565942243,3.2078,3033.8,3033.2,5.84155894]